[Event "*** Titled Tuesday Blitz"]
[Site "Chess.com"]
[Date "2021.04.06"]
[Round "3"]
[White "krzyzan94"]
[Black "FMOlexandrProhorov"]
[Result "1/2-1/2"]
[WhiteElo "2690"]
[BlackElo "2200"]
[TimeControl "180+1"]
[EndTime "10:28:27 PDT"]
[Termination "Game drawn by agreement"]

1. e4 {[%clk 0:02:59.1]} 1... c5 {[%clk 0:02:58.6]} 2. Nc3 {[%clk 0:02:58.3]}
2... Nc6 {[%clk 0:02:54.7]} 3. f4 {[%clk 0:02:57.8]} 3... g6 {[%clk 0:02:54.3]}
4. Nf3 {[%clk 0:02:55.4]} 4... Bg7 {[%clk 0:02:54.1]} 5. Bb5 {[%clk 0:02:55.8]}
5... Nd4 {[%clk 0:02:53.5]} 6. Bc4 {[%clk 0:02:54.1]} 6... a6 {[%clk 0:02:48.4]}
7. a4 {[%clk 0:02:51.1]} 7... e6 {[%clk 0:02:42.1]} 8. O-O {[%clk 0:02:49.6]}
8... Ne7 {[%clk 0:02:42.2]} 9. d3 {[%clk 0:02:45]} 9... d5 {[%clk 0:02:41.5]}
10. Ba2 {[%clk 0:02:44.1]} 10... O-O {[%clk 0:02:40.1]} 11. Kh1 {[%clk
0:02:43.6]} 11... Rb8 {[%clk 0:02:21.7]} 12. Nxd4 {[%clk 0:02:20.8]} 12... cxd4
{[%clk 0:02:18.1]} 13. Ne2 {[%clk 0:02:20.5]} 13... b5 {[%clk 0:02:09.5]} 14.
Ng3 {[%clk 0:02:16]} 14... Qc7 {[%clk 0:01:47.5]} 15. axb5 {[%clk 0:02:13.6]}
15... axb5 {[%clk 0:01:47.4]} 16. Bb3 {[%clk 0:02:12.7]} 16... Bb7 {[%clk
0:01:43.3]} 17. f5 {[%clk 0:02:09.5]} 17... exf5 {[%clk 0:01:25.4]} 18. exf5
{[%clk 0:02:10.4]} 18... Nxf5 {[%clk 0:01:10.6]} 19. Nxf5 {[%clk 0:02:05.4]}
19... gxf5 {[%clk 0:01:11.5]} 20. Bf4 {[%clk 0:01:59.4]} 20... Be5 {[%clk
0:01:10.4]} 21. Bxe5 {[%clk 0:01:57.1]} 21... Qxe5 {[%clk 0:01:11.3]} 22. Qh5
{[%clk 0:01:57.5]} 22... Qg7 {[%clk 0:01:06.3]} 23. Rxf5 {[%clk 0:01:56.1]}
23... f6 {[%clk 0:01:06]} 24. Ra7 {[%clk 0:01:50.6]} 24... Ra8 {[%clk
0:01:02.6]} 25. Rxa8 {[%clk 0:01:39.1]} 25... Rxa8 {[%clk 0:01:00.1]} 26. Rf1
{[%clk 0:01:36.7]} 26... Kh8 {[%clk 0:00:59.2]} 27. Re1 {[%clk 0:01:33.3]} 27...
Rg8 {[%clk 0:00:57.5]} 28. g3 {[%clk 0:01:30.3]} 28... Bc8 {[%clk 0:00:57.4]}
29. Qxd5 {[%clk 0:01:26.5]} 29... Bb7 {[%clk 0:00:54.4]} 30. Re4 {[%clk
0:01:25.4]} 30... Bxd5 {[%clk 0:00:54]} 31. Bxd5 {[%clk 0:01:26.3]} 31... Qg5
{[%clk 0:00:51.8]} 32. Bxg8 {[%clk 0:01:24.6]} 32... Kxg8 {[%clk 0:00:49.7]} 33.
b4 {[%clk 0:01:08.8]} 33... Qc1+ {[%clk 0:00:48.8]} 34. Kg2 {[%clk 0:01:09.1]}
34... Qb2 {[%clk 0:00:47.3]} 35. Kf3 {[%clk 0:01:06.2]} 35... Qxb4 {[%clk
0:00:46.9]} 36. Re2 {[%clk 0:01:04.1]} 36... Qc3 {[%clk 0:00:45.5]} 37. Ke4
{[%clk 0:01:03.4]} 37... b4 {[%clk 0:00:44.4]} 38. g4 {[%clk 0:01:00.9]} 38...
Kf7 {[%clk 0:00:44.4]} 39. h3 {[%clk 0:00:56.5]} 39... b3 {[%clk 0:00:44.6]} 40.
cxb3 {[%clk 0:00:56]} 40... Qxb3 {[%clk 0:00:45.5]} 41. Kxd4 {[%clk 0:00:55.4]}
41... Qb6+ {[%clk 0:00:43.4]} 42. Ke4 {[%clk 0:00:55.3]} 42... Qc6+ {[%clk
0:00:39.2]} 43. Ke3 {[%clk 0:00:51.4]} 43... Kg6 {[%clk 0:00:38.9]} 44. Rf2
{[%clk 0:00:48.6]} 44... Qh1 {[%clk 0:00:36.3]} 45. Rf3 {[%clk 0:00:47.1]} 45...
h5 {[%clk 0:00:31.8]} 46. gxh5+ {[%clk 0:00:46.5]} 46... Kg5 {[%clk 0:00:28.9]}
47. h6 {[%clk 0:00:44.9]} 47... Kxh6 {[%clk 0:00:23.3]} 48. Rxf6+ {[%clk
0:00:44.8]} 48... Kg5 {[%clk 0:00:23.7]} 49. Rf3 {[%clk 0:00:45.7]} 49... Qe1+
{[%clk 0:00:23]} 50. Kd4 {[%clk 0:00:45.5]} 50... Qg1+ {[%clk 0:00:22.1]}
1/2-1/2

[Event "*** Titled Tuesday Blitz"]
[Site "Chess.com"]
[Date "2021.04.06"]
[Round "3"]
[White "lrestevez"]
[Black "karinachess1"]
[Result "0-1"]
[WhiteElo "2135"]
[BlackElo "2490"]
[TimeControl "180+1"]
[EndTime "10:28:27 PDT"]
[Termination "karinachess1 won by resignation"]

1. e4 {[%clk 0:02:16.5]} 1... c5 {[%clk 0:02:57.5]} 2. Nf3 {[%clk 0:02:09.9]}
2... e6 {[%clk 0:02:57.5]} 3. d4 {[%clk 0:02:10.4]} 3... cxd4 {[%clk 0:02:58.4]}
4. c3 {[%clk 0:02:10.9]} 4... dxc3 {[%clk 0:02:50.1]} 5. Nxc3 {[%clk 0:02:11.8]}
5... d6 {[%clk 0:02:47]} 6. Bd3 {[%clk 0:02:07.4]} 6... Nc6 {[%clk 0:02:46.6]}
7. O-O {[%clk 0:02:07.2]} 7... Nf6 {[%clk 0:02:47]} 8. Qe2 {[%clk 0:02:07.2]}
8... Be7 {[%clk 0:02:47]} 9. Rd1 {[%clk 0:02:07.6]} 9... Qc7 {[%clk 0:02:47]}
10. Bf4 {[%clk 0:02:06.6]} 10... e5 {[%clk 0:02:07]} 11. Bg5 {[%clk 0:02:05.8]}
11... Be6 {[%clk 0:02:07.3]} 12. Rac1 {[%clk 0:02:04]} 12... Qb8 {[%clk
0:02:02.4]} 13. h3 {[%clk 0:01:55]} 13... O-O {[%clk 0:01:51.6]} 14. Bb1 {[%clk
0:01:49.5]} 14... h6 {[%clk 0:01:47.2]} 15. Bxf6 {[%clk 0:01:46.3]} 15... Bxf6
{[%clk 0:01:46.6]} 16. Nd5 {[%clk 0:01:47.2]} 16... Bxd5 {[%clk 0:01:43.6]} 17.
exd5 {[%clk 0:01:48.1]} 17... Ne7 {[%clk 0:01:43]} 18. Nd2 {[%clk 0:01:39.6]}
18... g6 {[%clk 0:01:38.5]} 19. Ne4 {[%clk 0:01:39.2]} 19... Bg7 {[%clk
0:01:39.2]} 20. Qb5 {[%clk 0:01:30.3]} 20... Qd8 {[%clk 0:01:31.8]} 21. Qxb7
{[%clk 0:01:14.1]} 21... f5 {[%clk 0:01:15.3]} 22. Rc7 {[%clk 0:00:57.2]} 22...
Rb8 {[%clk 0:00:35.2]} 23. Qxa7 {[%clk 0:00:55.4]} 23... Ra8 {[%clk 0:00:32.4]}
24. Qb6 {[%clk 0:00:26.4]} 24... fxe4 {[%clk 0:00:29.1]} 25. Bxe4 {[%clk
0:00:19.6]} 25... Nf5 {[%clk 0:00:17.9]} 26. Bxf5 {[%clk 0:00:18.7]} 26... Rxf5
{[%clk 0:00:18.8]} 27. Qb7 {[%clk 0:00:19]} 27... Bf8 {[%clk 0:00:16.4]} 28.
Rdc1 {[%clk 0:00:17]} 28... Qe8 {[%clk 0:00:15.3]} 29. Rc8 {[%clk 0:00:15.3]}
29... Rxc8 {[%clk 0:00:15.3]} 30. Rxc8 {[%clk 0:00:15.7]} 30... Qf7 {[%clk
0:00:15.7]} 31. Rc7 {[%clk 0:00:14.7]} 31... Qf6 {[%clk 0:00:16.2]} 32. Qc8
{[%clk 0:00:14.3]} 32... Rxf2 {[%clk 0:00:15]} 33. Qd7 {[%clk 0:00:13.8]} 33...
Rf1+ {[%clk 0:00:11.9]} 34. Kh2 {[%clk 0:00:14.1]} 34... Qf4+ {[%clk 0:00:12.1]}
0-1

[Event "*** Titled Tuesday Blitz"]
[Site "Chess.com"]
[Date "2021.04.06"]
[Round "3"]
[White "Dinamo3"]
[Black "annacramling"]
[Result "1-0"]
[WhiteElo "2481"]
[BlackElo "2075"]
[TimeControl "180+1"]
[EndTime "10:28:27 PDT"]
[Termination "Dinamo3 won on time"]

1. e4 {[%clk 0:03:00.9]} 1... c5 {[%clk 0:02:58.6]} 2. Ne2 {[%clk 0:03:00.1]}
2... Nc6 {[%clk 0:02:54]} 3. d4 {[%clk 0:02:57]} 3... cxd4 {[%clk 0:02:54.9]} 4.
Nxd4 {[%clk 0:02:57.6]} 4... Nf6 {[%clk 0:02:55]} 5. Nc3 {[%clk 0:02:57.6]} 5...
e6 {[%clk 0:02:53.2]} 6. Nxc6 {[%clk 0:02:47.1]} 6... bxc6 {[%clk 0:02:50.8]} 7.
Bd3 {[%clk 0:02:47.5]} 7... e5 {[%clk 0:02:50.6]} 8. O-O {[%clk 0:02:47.5]} 8...
Be7 {[%clk 0:02:49.3]} 9. Qe2 {[%clk 0:02:46.8]} 9... O-O {[%clk 0:02:49.1]} 10.
Kh1 {[%clk 0:02:47.3]} 10... d5 {[%clk 0:02:49.1]} 11. f4 {[%clk 0:02:45.4]}
11... d4 {[%clk 0:02:10.1]} 12. Nb1 {[%clk 0:02:33.6]} 12... Ng4 {[%clk
0:01:52]} 13. Na3 {[%clk 0:02:08.2]} 13... exf4 {[%clk 0:01:39]} 14. Bxf4 {[%clk
0:02:04]} 14... Bg5 {[%clk 0:01:27.5]} 15. Nc4 {[%clk 0:01:57.4]} 15... Be6
{[%clk 0:01:03.6]} 16. h3 {[%clk 0:01:47.3]} 16... Bxf4 {[%clk 0:00:38.7]} 17.
Rxf4 {[%clk 0:01:44.1]} 17... Bxc4 {[%clk 0:00:30.8]} 18. Qxg4 {[%clk
0:01:34.1]} 18... Bxd3 {[%clk 0:00:28.2]} 19. cxd3 {[%clk 0:01:35]} 19... c5
{[%clk 0:00:24.4]} 20. Rf5 {[%clk 0:01:29.7]} 20... Qb6 {[%clk 0:00:17.3]} 21.
b3 {[%clk 0:01:28.8]} 21... Rad8 {[%clk 0:00:08.9]} 22. Rc1 {[%clk 0:01:28.2]}
22... Rc8 {[%clk 0:00:04.1]} 23. Rg5 {[%clk 0:01:07.6]} 23... Qh6 {[%clk
0:00:01.1]} 24. Rf1 {[%clk 0:00:54.2]} 24... Kh8 {[%clk 0:00:01.6]} 25. Rff5
{[%clk 0:00:52.5]} 25... f6 {[%clk 0:00:01.9]} 26. Rh5 {[%clk 0:00:49.9]} 26...
Qg6 {[%clk 0:00:02.4]} 27. Qh4 {[%clk 0:00:45.5]} 27... h6 {[%clk 0:00:02]} 28.
Rxc5 {[%clk 0:00:45]} 28... Rxc5 {[%clk 0:00:01.5]} 29. Rxc5 {[%clk 0:00:45.9]}
29... Qf7 {[%clk 0:00:01.3]} 30. Qe1 {[%clk 0:00:42.6]} 30... Re8 {[%clk
0:00:01.8]} 31. Qb4 {[%clk 0:00:42]} 31... Qe7 {[%clk 0:00:01.9]} 32. Qxd4
{[%clk 0:00:42]} 32... Qf7 {[%clk 0:00:02.1]} 33. Rd5 {[%clk 0:00:42.3]} 33...
Re7 {[%clk 0:00:02.1]} 34. Rd8+ {[%clk 0:00:42.4]} 34... Re8 {[%clk 0:00:02.6]}
35. Rxe8+ {[%clk 0:00:42.1]} 35... Qxe8 {[%clk 0:00:03.5]} 36. Qxa7 {[%clk
0:00:42.2]} 36... Qd8 {[%clk 0:00:03.9]} 37. Qe3 {[%clk 0:00:42.2]} 37... Qc7
{[%clk 0:00:04]} 38. Qd2 {[%clk 0:00:41.3]} 38... Kg8 {[%clk 0:00:03.9]} 39. d4
{[%clk 0:00:41.8]} 39... Kf7 {[%clk 0:00:04.1]} 40. d5 {[%clk 0:00:42.2]} 40...
Qg3 {[%clk 0:00:02.8]} 41. d6 {[%clk 0:00:41.7]} 41... Ke6 {[%clk 0:00:02.4]}
42. d7 {[%clk 0:00:42]} 1-0

[Event "*** Titled Tuesday Blitz"]
[Site "Chess.com"]
[Date "2021.04.06"]
[Round "3"]
[White "Pliukha_Mikhail"]
[Black "A-Fier"]
[Result "0-1"]
[WhiteElo "2492"]
[BlackElo "2713"]
[TimeControl "180+1"]
[EndTime "10:28:33 PDT"]
[Termination "A-Fier won by checkmate"]

1. e4 {[%clk 0:03:00.4]} 1... c5 {[%clk 0:02:59.8]} 2. d4 {[%clk 0:03:00.7]}
2... a6 {[%clk 0:03:00.4]} 3. c3 {[%clk 0:03:01.6]} 3... cxd4 {[%clk 0:02:55.1]}
4. cxd4 {[%clk 0:03:02.5]} 4... d5 {[%clk 0:02:55.7]} 5. exd5 {[%clk 0:03:02.9]}
5... Nf6 {[%clk 0:02:55.1]} 6. Nc3 {[%clk 0:03:03.1]} 6... Nxd5 {[%clk
0:02:55.7]} 7. Bc4 {[%clk 0:03:03.6]} 7... Be6 {[%clk 0:02:55]} 8. Qb3 {[%clk
0:02:58]} 8... Nc7 {[%clk 0:02:39.4]} 9. Bxe6 {[%clk 0:02:55.5]} 9... Nxe6
{[%clk 0:02:40.3]} 10. Qxb7 {[%clk 0:02:54.2]} 10... Nd7 {[%clk 0:02:40.4]} 11.
Nge2 {[%clk 0:02:50.2]} 11... g6 {[%clk 0:02:40]} 12. Be3 {[%clk 0:02:43]} 12...
Bg7 {[%clk 0:02:40]} 13. d5 {[%clk 0:02:09.3]} 13... Nec5 {[%clk 0:02:39.9]} 14.
Bxc5 {[%clk 0:02:09.4]} 14... Nxc5 {[%clk 0:02:40.8]} 15. Qc6+ {[%clk
0:02:09.9]} 15... Nd7 {[%clk 0:02:41.4]} 16. O-O {[%clk 0:02:10.1]} 16... O-O
{[%clk 0:02:42]} 17. Rfd1 {[%clk 0:02:10]} 17... Rb8 {[%clk 0:02:41.5]} 18. Rab1
{[%clk 0:02:06]} 18... a5 {[%clk 0:02:38.8]} 19. Qa4 {[%clk 0:01:50.6]} 19...
Nc5 {[%clk 0:02:36.5]} 20. Qc4 {[%clk 0:01:48.1]} 20... Qb6 {[%clk 0:02:23.4]}
21. a3 {[%clk 0:01:37.6]} 21... Rfc8 {[%clk 0:02:19.5]} 22. Qh4 {[%clk
0:01:27.5]} 22... Bf6 {[%clk 0:02:11.7]} 23. Qg3 {[%clk 0:01:26.8]} 23... Qb3
{[%clk 0:02:10.6]} 24. d6 {[%clk 0:01:07.5]} 24... exd6 {[%clk 0:02:07]} 25.
Qxd6 {[%clk 0:01:03.5]} 25... Bg7 {[%clk 0:02:04.4]} 26. Nd5 {[%clk 0:01:02.3]}
26... Ne4 {[%clk 0:01:37.8]} 27. Qf4 {[%clk 0:00:39.8]} 27... Re8 {[%clk
0:01:33.8]} 28. Ng3 {[%clk 0:00:29.4]} 28... Nxg3 {[%clk 0:01:23.3]} 29. hxg3
{[%clk 0:00:30.3]} 29... Rbc8 {[%clk 0:01:09.7]} 30. Qf3 {[%clk 0:00:20.3]}
30... Qc2 {[%clk 0:01:06.6]} 31. b4 {[%clk 0:00:14.8]} 31... axb4 {[%clk
0:01:06.5]} 32. axb4 {[%clk 0:00:15.7]} 32... Re2 {[%clk 0:00:59.3]} 33. Rbc1
{[%clk 0:00:08.3]} 33... Qxc1 {[%clk 0:00:58.7]} 34. Rxc1 {[%clk 0:00:09.2]}
34... Rxc1+ {[%clk 0:00:58.1]} 35. Kh2 {[%clk 0:00:10.1]} 35... Rb2 {[%clk
0:00:54.5]} 36. Ne7+ {[%clk 0:00:04.5]} 36... Kf8 {[%clk 0:00:52]} 37. Qb7
{[%clk 0:00:03.2]} 37... Rbb1 {[%clk 0:00:46.3]} 38. g4 {[%clk 0:00:02]} 38...
Be5+ {[%clk 0:00:46.4]} 39. g3 {[%clk 0:00:02.6]} 39... Rb2 {[%clk 0:00:45]} 40.
Nc6 {[%clk 0:00:02.1]} 40... Rxf2+ {[%clk 0:00:44.4]} 41. Kh3 {[%clk 0:00:02.5]}
41... Rh1# {[%clk 0:00:45.3]} 0-1

[Event "*** Titled Tuesday Blitz"]
[Site "Chess.com"]
[Date "2021.04.06"]
[Round "3"]
[White "frenchpin"]
[Black "Chessdude1987"]
[Result "0-1"]
[WhiteElo "2514"]
[BlackElo "2315"]
[TimeControl "180+1"]
[EndTime "10:28:33 PDT"]
[Termination "Chessdude1987 won on time"]

1. e4 {[%clk 0:03:00.9]} 1... e6 {[%clk 0:03:00.4]} 2. d4 {[%clk 0:03:00]} 2...
d5 {[%clk 0:03:01.3]} 3. Nd2 {[%clk 0:03:00.3]} 3... c5 {[%clk 0:03:00.9]} 4.
exd5 {[%clk 0:03:00.1]} 4... exd5 {[%clk 0:03:01.8]} 5. Ngf3 {[%clk 0:03:00]}
5... Nf6 {[%clk 0:03:02.4]} 6. Bb5+ {[%clk 0:02:58.9]} 6... Bd7 {[%clk
0:03:02.5]} 7. Qe2+ {[%clk 0:02:58.5]} 7... Be7 {[%clk 0:03:02.4]} 8. dxc5
{[%clk 0:02:53.5]} 8... O-O {[%clk 0:03:02.3]} 9. Nb3 {[%clk 0:02:53.3]} 9...
Re8 {[%clk 0:03:01.8]} 10. Be3 {[%clk 0:02:52.8]} 10... a5 {[%clk 0:02:29.9]}
11. a4 {[%clk 0:02:45.5]} 11... Na6 {[%clk 0:02:24.8]} 12. Bxa6 {[%clk
0:02:30.4]} 12... Rxa6 {[%clk 0:02:24.2]} 13. O-O {[%clk 0:02:29.8]} 13... Ne4
{[%clk 0:02:18.4]} 14. Qd3 {[%clk 0:02:22.1]} 14... Bf5 {[%clk 0:02:16.6]} 15.
Rfd1 {[%clk 0:02:19.7]} 15... Bf6 {[%clk 0:01:52.9]} 16. Qxd5 {[%clk 0:02:12.4]}
16... Qxd5 {[%clk 0:01:48.6]} 17. Rxd5 {[%clk 0:02:13.3]} 17... Be6 {[%clk
0:01:46]} 18. Rd3 {[%clk 0:02:02.5]} 18... Bxb2 {[%clk 0:01:40.6]} 19. Rb1
{[%clk 0:02:02]} 19... Bf6 {[%clk 0:01:39.4]} 20. Bd4 {[%clk 0:01:49.9]} 20...
Bd8 {[%clk 0:01:27]} 21. Re3 {[%clk 0:01:36.3]} 21... f5 {[%clk 0:01:25.6]} 22.
g3 {[%clk 0:01:19.2]} 22... Bd7 {[%clk 0:01:20.6]} 23. Ne5 {[%clk 0:01:07.6]}
23... Bxa4 {[%clk 0:01:17.2]} 24. f3 {[%clk 0:01:02]} 24... Nf6 {[%clk
0:01:13.9]} 25. c4 {[%clk 0:00:55.3]} 25... f4 {[%clk 0:01:10.8]} 26. gxf4
{[%clk 0:00:50.5]} 26... Nh5 {[%clk 0:01:05.6]} 27. Nd3 {[%clk 0:00:46.7]} 27...
Rg6+ {[%clk 0:01:01.3]} 28. Kf1 {[%clk 0:00:43.4]} 28... Rf8 {[%clk 0:01:00.3]}
29. Be5 {[%clk 0:00:37.7]} 29... Bd7 {[%clk 0:00:54.9]} 30. Bd6 {[%clk
0:00:25.1]} 30... Bh3+ {[%clk 0:00:53.9]} 31. Ke2 {[%clk 0:00:23.4]} 31... Rg2+
{[%clk 0:00:51.8]} 32. Nf2 {[%clk 0:00:19.7]} 32... Nxf4+ {[%clk 0:00:50.7]} 33.
Bxf4 {[%clk 0:00:19.3]} 33... Rxf4 {[%clk 0:00:50.5]} 34. Rd1 {[%clk 0:00:18.9]}
34... Rf8 {[%clk 0:00:49.5]} 35. Rd7 {[%clk 0:00:17.3]} 35... Bh4 {[%clk
0:00:44.2]} 36. Rxb7 {[%clk 0:00:12.2]} 36... Bxf2 {[%clk 0:00:41.1]} 37. Re4
{[%clk 0:00:08.1]} 37... Bxc5+ {[%clk 0:00:40.1]} 38. Ke1 {[%clk 0:00:02.9]}
38... Bb4+ {[%clk 0:00:38.7]} 39. Kd1 {[%clk 0:00:02]} 39... Rd8+ {[%clk
0:00:37.4]} 40. Kc1 {[%clk 0:00:01]} 40... Ba3+ {[%clk 0:00:36.9]} 41. Kb1
{[%clk 0:00:01.2]} 41... Bf5 {[%clk 0:00:36.2]} 0-1

[Event "*** Titled Tuesday Blitz"]
[Site "Chess.com"]
[Date "2021.04.06"]
[Round "3"]
[White "vugarrasulov"]
[Black "sergeikim"]
[Result "1-0"]
[WhiteElo "2869"]
[BlackElo "2532"]
[TimeControl "180+1"]
[EndTime "10:28:34 PDT"]
[Termination "vugarrasulov won on time"]

1. e4 {[%clk 0:03:00.9]} 1... e5 {[%clk 0:02:59.7]} 2. Nf3 {[%clk 0:03:01.2]}
2... Nc6 {[%clk 0:02:59.6]} 3. Bb5 {[%clk 0:03:01.2]} 3... a6 {[%clk 0:02:59.5]}
4. Ba4 {[%clk 0:03:01.2]} 4... Nf6 {[%clk 0:02:59.2]} 5. O-O {[%clk 0:03:01.7]}
5... b5 {[%clk 0:02:58.8]} 6. Bb3 {[%clk 0:03:01.4]} 6... Bc5 {[%clk 0:02:58.4]}
7. a4 {[%clk 0:02:57.9]} 7... Bb7 {[%clk 0:02:54.4]} 8. Nxe5 {[%clk 0:02:50.2]}
8... Nxe5 {[%clk 0:02:53]} 9. d4 {[%clk 0:02:50.7]} 9... Bxd4 {[%clk 0:02:52.8]}
10. Qxd4 {[%clk 0:02:51.6]} 10... d6 {[%clk 0:02:52.5]} 11. Nc3 {[%clk
0:02:47.2]} 11... c5 {[%clk 0:02:49.7]} 12. Qe3 {[%clk 0:02:45.4]} 12... c4
{[%clk 0:02:49.5]} 13. Ba2 {[%clk 0:02:45.7]} 13... b4 {[%clk 0:02:25.5]} 14.
Nd5 {[%clk 0:02:44.5]} 14... Bxd5 {[%clk 0:02:19.6]} 15. exd5 {[%clk 0:02:45.4]}
15... O-O {[%clk 0:02:15.4]} 16. f4 {[%clk 0:02:42.9]} 16... Neg4 {[%clk
0:01:45.1]} 17. Qd4 {[%clk 0:02:42.3]} 17... Re8 {[%clk 0:01:43.1]} 18. Kh1
{[%clk 0:01:57.8]} 18... Re4 {[%clk 0:01:40.8]} 19. Qg1 {[%clk 0:01:57.9]} 19...
Nh5 {[%clk 0:01:28]} 20. Rf3 {[%clk 0:01:36.4]} 20... Qh4 {[%clk 0:01:15.7]} 21.
Bd2 {[%clk 0:01:29.9]} 21... a5 {[%clk 0:01:08.9]} 22. Raf1 {[%clk 0:01:26.3]}
22... Rae8 {[%clk 0:01:06]} 23. Rh3 {[%clk 0:01:26.3]} 23... Qe7 {[%clk
0:00:49.5]} 24. Rxh5 {[%clk 0:01:25.9]} 24... Re2 {[%clk 0:00:49.1]} 25. Bc1
{[%clk 0:01:07.6]} 25... Qe4 {[%clk 0:00:42.7]} 26. Rg5 {[%clk 0:00:55.9]} 26...
f5 {[%clk 0:00:24.3]} 27. h3 {[%clk 0:00:44.1]} 27... Nf6 {[%clk 0:00:19.4]} 28.
Kh2 {[%clk 0:00:32.1]} 28... h6 {[%clk 0:00:12.8]} 29. Rg3 {[%clk 0:00:31.7]}
29... Nxd5 {[%clk 0:00:12.2]} 30. Qa7 {[%clk 0:00:30.4]} 30... Re7 {[%clk
0:00:10.1]} 31. Qb8+ {[%clk 0:00:30.6]} 31... Kh7 {[%clk 0:00:09.2]} 32. Qxd6
{[%clk 0:00:31.2]} 32... Nf6 {[%clk 0:00:06]} 33. Qc5 {[%clk 0:00:24.8]} 33...
Rd7 {[%clk 0:00:01.9]} 34. Bxc4 {[%clk 0:00:23.7]} 1-0

[Event "*** Titled Tuesday Blitz"]
[Site "Chess.com"]
[Date "2021.04.06"]
[Round "3"]
[White "AniJak"]
[Black "zurzan"]
[Result "1-0"]
[WhiteElo "2290"]
[BlackElo "1981"]
[TimeControl "180+1"]
[EndTime "10:28:36 PDT"]
[Termination "AniJak won by resignation"]

1. e4 {[%clk 0:03:00.9]} 1... Nf6 {[%clk 0:03:00.9]} 2. e5 {[%clk 0:03:00.6]}
2... Nd5 {[%clk 0:03:01.1]} 3. d4 {[%clk 0:03:01.3]} 3... d6 {[%clk 0:03:00.9]}
4. c4 {[%clk 0:03:01.9]} 4... Nb6 {[%clk 0:03:01.1]} 5. exd6 {[%clk 0:03:02.8]}
5... cxd6 {[%clk 0:03:01.8]} 6. Be3 {[%clk 0:03:02.6]} 6... g6 {[%clk
0:03:02.7]} 7. Nc3 {[%clk 0:03:02.5]} 7... Bg7 {[%clk 0:03:03.1]} 8. Rc1 {[%clk
0:03:02.3]} 8... O-O {[%clk 0:03:03.1]} 9. Be2 {[%clk 0:03:02.6]} 9... e5 {[%clk
0:02:48.8]} 10. dxe5 {[%clk 0:02:56.7]} 10... dxe5 {[%clk 0:02:49.7]} 11. Nf3
{[%clk 0:02:56.8]} 11... Qxd1+ {[%clk 0:02:48.4]} 12. Rxd1 {[%clk 0:02:55.1]}
12... Nc6 {[%clk 0:02:47.2]} 13. O-O {[%clk 0:02:50.2]} 13... Bg4 {[%clk
0:02:46.4]} 14. b3 {[%clk 0:02:43.7]} 14... Rad8 {[%clk 0:02:37.8]} 15. Bxb6
{[%clk 0:02:42.1]} 15... axb6 {[%clk 0:02:37]} 16. Nd5 {[%clk 0:02:41.8]} 16...
e4 {[%clk 0:02:30.6]} 17. Nd4 {[%clk 0:02:24.9]} 17... Nxd4 {[%clk 0:02:21.2]}
18. Bxg4 {[%clk 0:02:24.2]} 18... f5 {[%clk 0:02:21.5]} 19. Bh3 {[%clk
0:02:22.8]} 19... Ne2+ {[%clk 0:02:19.1]} 20. Kh1 {[%clk 0:02:22.4]} 20... Rd6
{[%clk 0:02:12.5]} 21. Ne7+ {[%clk 0:02:19.8]} 21... Kf7 {[%clk 0:02:11.3]} 22.
Rxd6 {[%clk 0:02:20.7]} 22... Kxe7 {[%clk 0:02:11.6]} 23. Rxb6 {[%clk
0:02:20.2]} 23... Rb8 {[%clk 0:02:07.8]} 24. f3 {[%clk 0:02:13.3]} 24... Bd4
{[%clk 0:02:03]} 25. Rb5 {[%clk 0:02:03.9]} 25... Nc3 {[%clk 0:01:47.2]} 26. Ra5
{[%clk 0:01:20.6]} 26... e3 {[%clk 0:01:36.4]} 27. Re1 {[%clk 0:01:20.3]} 27...
e2 {[%clk 0:01:31.4]} 28. g4 {[%clk 0:01:20]} 28... Bf2 {[%clk 0:01:24.5]} 29.
Rxe2+ {[%clk 0:01:19.7]} 29... Nxe2 {[%clk 0:01:24.4]} 30. Re5+ {[%clk
0:01:19.6]} 30... Kf6 {[%clk 0:01:24.4]} 31. Rxe2 {[%clk 0:01:20.5]} 31... fxg4
{[%clk 0:01:23.8]} 32. Rxf2 {[%clk 0:01:12.4]} 32... gxh3 {[%clk 0:01:23.7]} 33.
Rd2 {[%clk 0:01:11.3]} 33... b5 {[%clk 0:01:15.2]} 34. cxb5 {[%clk 0:01:08.4]}
34... Rxb5 {[%clk 0:01:14.7]} 35. Kg1 {[%clk 0:01:08.7]} 35... Kf5 {[%clk
0:01:08.3]} 36. Kf2 {[%clk 0:01:06.2]} 36... Ra5 {[%clk 0:01:03.1]} 37. Kg3
{[%clk 0:01:05.4]} 37... h5 {[%clk 0:00:58.9]} 38. Kxh3 {[%clk 0:01:02.8]} 38...
Kf4 {[%clk 0:00:59]} 39. Kg2 {[%clk 0:01:02.9]} 39... Ke3 {[%clk 0:00:58.7]} 40.
Rb2 {[%clk 0:01:00.1]} 40... Rf5 {[%clk 0:00:55.2]} 41. b4 {[%clk 0:00:48.1]}
41... Rg5+ {[%clk 0:00:55.5]} 42. Kf1 {[%clk 0:00:44.4]} 42... Kxf3 {[%clk
0:00:53.1]} 43. Rb3+ {[%clk 0:00:44.2]} 43... Ke4 {[%clk 0:00:51.9]} 44. b5
{[%clk 0:00:45.1]} 44... Rf5+ {[%clk 0:00:49]} 45. Ke2 {[%clk 0:00:44]} 45...
Rf8 {[%clk 0:00:49.9]} 46. b6 {[%clk 0:00:43.5]} 46... Rb8 {[%clk 0:00:49.8]}
47. a4 {[%clk 0:00:43.2]} 47... Kd5 {[%clk 0:00:48.1]} 48. a5 {[%clk 0:00:43.4]}
48... Kc6 {[%clk 0:00:48.1]} 49. Kf3 {[%clk 0:00:43.2]} 49... g5 {[%clk
0:00:46.9]} 50. Ke4 {[%clk 0:00:42.3]} 50... Rf8 {[%clk 0:00:40.5]} 51. b7
{[%clk 0:00:39.9]} 51... Kc7 {[%clk 0:00:39.5]} 52. b8=Q+ {[%clk 0:00:31.8]}
52... Rxb8 {[%clk 0:00:38.9]} 53. Rxb8 {[%clk 0:00:32.3]} 53... Kxb8 {[%clk
0:00:39.3]} 54. Kf5 {[%clk 0:00:32.7]} 54... g4 {[%clk 0:00:38.3]} 55. Kg5
{[%clk 0:00:32.6]} 55... Ka7 {[%clk 0:00:37.7]} 56. Kxh5 {[%clk 0:00:32.8]} 1-0